[Event "*** MasterClass Titled Tuesday Blitz"]
[Site "Chess.com"]
[Date "2017.10.03"]
[Round "3"]
[White "Incognito_Knight"]
[Black "Sven_Tica"]
[Result "0-1"]
[WhiteElo "2448"]
[BlackElo "2453"]
[TimeControl "180+2"]
[EndTime "13:37:11 PDT"]
[Termination "Sven_Tica won on time"]

1. e4 {[%clk 0:03:01.9]} 1... e6 {[%clk 0:03:00]} 2. d4 {[%clk 0:03:01.2]} 2...
d5 {[%clk 0:03:01.5]} 3. Nd2 {[%clk 0:03:02]} 3... c5 {[%clk 0:03:02.6]} 4. exd5
{[%clk 0:03:01.1]} 4... Qxd5 {[%clk 0:03:04.5]} 5. dxc5 {[%clk 0:03:01.6]} 5...
Nf6 {[%clk 0:03:04]} 6. Ngf3 {[%clk 0:03:02.5]} 6... Qxc5 {[%clk 0:03:04.9]} 7.
Bd3 {[%clk 0:03:00.3]} 7... Nbd7 {[%clk 0:03:04.4]} 8. O-O {[%clk 0:03:01.5]}
8... Qc7 {[%clk 0:03:05.4]} 9. Qe2 {[%clk 0:02:58]} 9... Be7 {[%clk 0:03:04.4]}
10. a3 {[%clk 0:02:57.9]} 10... b6 {[%clk 0:03:05.3]} 11. b4 {[%clk 0:02:58.1]}
11... Bb7 {[%clk 0:03:04.1]} 12. Bb2 {[%clk 0:02:59.1]} 12... O-O {[%clk
0:03:03.4]} 13. c4 {[%clk 0:02:59.9]} 13... Rad8 {[%clk 0:03:03]} 14. Rad1
{[%clk 0:02:59.9]} 14... a5 {[%clk 0:02:55.9]} 15. Bc3 {[%clk 0:02:44.9]} 15...
axb4 {[%clk 0:02:43.5]} 16. axb4 {[%clk 0:02:46.8]} 16... Bd6 {[%clk 0:02:35.3]}
17. Rfe1 {[%clk 0:02:37.5]} 17... Rfe8 {[%clk 0:02:25.5]} 18. h3 {[%clk
0:02:38.2]} 18... e5 {[%clk 0:01:44.9]} 19. Ng5 {[%clk 0:02:30.1]} 19... e4
{[%clk 0:01:28.1]} 20. Bb1 {[%clk 0:01:32.7]} 20... Be5 {[%clk 0:01:12.3]} 21.
Bxe5 {[%clk 0:00:46.3]} 21... Qxe5 {[%clk 0:01:13.8]} 22. h4 {[%clk 0:00:39]}
22... h6 {[%clk 0:00:46.3]} 23. Ngxe4 {[%clk 0:00:39.9]} 23... Nxe4 {[%clk
0:00:41]} 24. Nxe4 {[%clk 0:00:40]} 24... f5 {[%clk 0:00:21.5]} 25. Ng3 {[%clk
0:00:39.6]} 25... f4 {[%clk 0:00:18.5]} 26. Qxe5 {[%clk 0:00:34.9]} 26... Nxe5
{[%clk 0:00:20.4]} 27. Rxd8 {[%clk 0:00:32.5]} 27... Rxd8 {[%clk 0:00:22.3]} 28.
Nf5 {[%clk 0:00:27.7]} 28... Nxc4 {[%clk 0:00:18.9]} 29. Ne7+ {[%clk 0:00:28.8]}
29... Kf7 {[%clk 0:00:17.7]} 30. b5 {[%clk 0:00:22.1]} 30... Rd7 {[%clk
0:00:14.3]} 31. Nf5 {[%clk 0:00:18.4]} 31... Kf6 {[%clk 0:00:14.7]} 32. h5
{[%clk 0:00:13.2]} 32... Na3 {[%clk 0:00:12.9]} 33. Ba2 {[%clk 0:00:09.3]} 33...
Nxb5 {[%clk 0:00:12.5]} 34. Nh4 {[%clk 0:00:07.3]} 34... Nd4 {[%clk 0:00:12.2]}
35. Kh2 {[%clk 0:00:06.6]} 35... f3 {[%clk 0:00:13.1]} 36. g4 {[%clk 0:00:04.8]}
36... Kg5 {[%clk 0:00:12.5]} 37. Ng6 {[%clk 0:00:04.6]} 37... Ne2 {[%clk
0:00:09.8]} 38. Ne5 {[%clk 0:00:04.9]} 38... Rd2 {[%clk 0:00:09.3]} 0-1

[Event "*** MasterClass Titled Tuesday Blitz"]
[Site "Chess.com"]
[Date "2017.10.03"]
[Round "3"]
[White "rickkrewson"]
[Black "shepi13"]
[Result "1/2-1/2"]
[WhiteElo "1777"]
[BlackElo "2002"]
[TimeControl "180+2"]
[EndTime "13:37:16 PDT"]
[Termination "Game drawn by repetition"]

1. Nf3 {[%clk 0:03:01.9]} 1... d5 {[%clk 0:02:59.6]} 2. b3 {[%clk 0:03:02.2]}
2... c5 {[%clk 0:02:57.6]} 3. e3 {[%clk 0:03:02.4]} 3... Nc6 {[%clk 0:02:58.7]}
4. Bb2 {[%clk 0:03:02.7]} 4... Nf6 {[%clk 0:02:56.7]} 5. Be2 {[%clk 0:03:02.6]}
5... Bf5 {[%clk 0:02:56.2]} 6. O-O {[%clk 0:03:03.6]} 6... e6 {[%clk 0:02:54.8]}
7. d4 {[%clk 0:03:01.8]} 7... Rc8 {[%clk 0:02:45.9]} 8. c4 {[%clk 0:03:02.6]}
8... cxd4 {[%clk 0:02:38.2]} 9. Nxd4 {[%clk 0:03:02.4]} 9... Nxd4 {[%clk
0:02:38.7]} 10. Bxd4 {[%clk 0:02:58.5]} 10... Be7 {[%clk 0:02:39]} 11. Nc3
{[%clk 0:02:53]} 11... O-O {[%clk 0:02:31.6]} 12. Rc1 {[%clk 0:02:49.2]} 12...
dxc4 {[%clk 0:01:58.8]} 13. Bxc4 {[%clk 0:02:48.5]} 13... Bc5 {[%clk 0:01:59.2]}
14. Bxc5 {[%clk 0:02:29]} 14... Rxc5 {[%clk 0:01:58.5]} 15. Qxd8 {[%clk
0:02:28.6]} 15... Rxd8 {[%clk 0:01:59.1]} 16. f3 {[%clk 0:01:51.7]} 16... h6
{[%clk 0:01:34.3]} 17. e4 {[%clk 0:01:51.9]} 17... Bg6 {[%clk 0:01:34.9]} 18.
Rcd1 {[%clk 0:01:21.3]} 18... Rcc8 {[%clk 0:01:33.2]} 19. Rxd8+ {[%clk
0:01:18.7]} 19... Rxd8 {[%clk 0:01:33.6]} 20. Rd1 {[%clk 0:01:19.5]} 20... Rxd1+
{[%clk 0:01:25.7]} 21. Nxd1 {[%clk 0:01:19.3]} 21... Kf8 {[%clk 0:01:25.9]} 22.
Kf2 {[%clk 0:01:20.3]} 22... Ke7 {[%clk 0:01:26.8]} 23. Ke3 {[%clk 0:01:21.2]}
23... Kd6 {[%clk 0:01:25.9]} 24. Kd4 {[%clk 0:01:22.1]} 24... e5+ {[%clk
0:01:22.7]} 25. Ke3 {[%clk 0:01:19.6]} 25... Nd7 {[%clk 0:01:21.6]} 26. Kd3
{[%clk 0:01:13.2]} 26... Nb6 {[%clk 0:01:20.5]} 27. Ne3 {[%clk 0:01:11.5]} 27...
f6 {[%clk 0:01:18.9]} 28. Bg8 {[%clk 0:01:08.6]} 28... Be8 {[%clk 0:01:17.8]}
29. Nc4+ {[%clk 0:01:08.4]} 29... Nxc4 {[%clk 0:01:17.5]} 30. Bxc4 {[%clk
0:01:08.8]} 30... Bc6 {[%clk 0:01:13.6]} 31. a3 {[%clk 0:01:07.9]} 31... a6
{[%clk 0:01:13.8]} 32. b4 {[%clk 0:01:07.7]} 32... Kc7 {[%clk 0:01:01.6]} 33.
Kc3 {[%clk 0:01:06.6]} 33... Kb6 {[%clk 0:01:01]} 34. Bb3 {[%clk 0:01:07.7]}
34... a5 {[%clk 0:00:59.5]} 35. a4 {[%clk 0:01:05.5]} 35... Bd7 {[%clk
0:00:48.9]} 36. Bc2 {[%clk 0:00:55.4]} 36... Be8 {[%clk 0:00:35.2]} 37. Bb3
{[%clk 0:00:53.3]} 37... Bd7 {[%clk 0:00:34.9]} 38. Bc2 {[%clk 0:00:52]} 38...
Be8 {[%clk 0:00:35.7]} 39. g4 {[%clk 0:00:52]} 39... Bf7 {[%clk 0:00:26.6]} 40.
Bd3 {[%clk 0:00:48.9]} 40... Be8 {[%clk 0:00:22.9]} 41. Kb3 {[%clk 0:00:45.2]}
41... h5 {[%clk 0:00:23.8]} 42. h3 {[%clk 0:00:45.3]} 42... h4 {[%clk
0:00:20.7]} 43. Bc4 {[%clk 0:00:44.1]} 43... Bc6 {[%clk 0:00:20.6]} 44. Bd5
{[%clk 0:00:40.1]} 44... Bd7 {[%clk 0:00:18.7]} 45. Bc4 {[%clk 0:00:38.5]} 45...
Bc6 {[%clk 0:00:19.5]} 46. Bd3 {[%clk 0:00:39.4]} 46... axb4 {[%clk 0:00:17.7]}
47. Kxb4 {[%clk 0:00:39.7]} 47... Kc7 {[%clk 0:00:18.7]} 48. a5 {[%clk
0:00:39.2]} 48... Kd6 {[%clk 0:00:17.5]} 49. a6 {[%clk 0:00:39.8]} 49... bxa6
{[%clk 0:00:18.1]} 50. Bxa6 {[%clk 0:00:37]} 50... Bd7 {[%clk 0:00:19]} 51. Bc4
{[%clk 0:00:36.6]} 51... Bc8 {[%clk 0:00:19]} 52. Bf7 {[%clk 0:00:37.3]} 52...
Bd7 {[%clk 0:00:20.1]} 53. Bc4 {[%clk 0:00:37.8]} 53... Bc8 {[%clk 0:00:21.1]}
54. Bf7 {[%clk 0:00:38.7]} 54... Bd7 {[%clk 0:00:22.3]} 55. Bc4 {[%clk
0:00:39.5]} 1/2-1/2

[Event "*** MasterClass Titled Tuesday Blitz"]
[Site "Chess.com"]
[Date "2017.10.03"]
[Round "3"]
[White "iusegine"]
[Black "JammyDodger91"]
[Result "0-1"]
[WhiteElo "2292"]
[BlackElo "2409"]
[TimeControl "180+2"]
[EndTime "13:37:18 PDT"]
[Termination "JammyDodger91 won by resignation"]

1. e4 {[%clk 0:03:01.9]} 1... g6 {[%clk 0:03:01]} 2. d4 {[%clk 0:03:02.4]} 2...
Bg7 {[%clk 0:03:02.4]} 3. Nc3 {[%clk 0:03:03]} 3... d6 {[%clk 0:03:03.9]} 4. f4
{[%clk 0:03:04]} 4... a6 {[%clk 0:03:05.2]} 5. Nf3 {[%clk 0:03:02.3]} 5... b5
{[%clk 0:03:06.3]} 6. Bd3 {[%clk 0:03:03.6]} 6... Nd7 {[%clk 0:03:07.4]} 7. a4
{[%clk 0:03:04]} 7... b4 {[%clk 0:03:06.3]} 8. Ne2 {[%clk 0:03:05.1]} 8... c5
{[%clk 0:03:03]} 9. c3 {[%clk 0:03:06]} 9... bxc3 {[%clk 0:03:04.1]} 10. bxc3
{[%clk 0:03:06.8]} 10... Ngf6 {[%clk 0:03:05.2]} 11. e5 {[%clk 0:02:59.4]} 11...
dxe5 {[%clk 0:02:50.7]} 12. dxe5 {[%clk 0:02:51.5]} 12... Ng4 {[%clk 0:02:45.8]}
13. Be4 {[%clk 0:02:31.7]} 13... Rb8 {[%clk 0:02:46.5]} 14. h3 {[%clk
0:02:00.8]} 14... Nh6 {[%clk 0:02:45.9]} 15. g4 {[%clk 0:01:50.2]} 15... O-O
{[%clk 0:02:34.8]} 16. Be3 {[%clk 0:01:42.2]} 16... Bb7 {[%clk 0:02:26.2]} 17.
Bxb7 {[%clk 0:01:41.3]} 17... Rxb7 {[%clk 0:02:28.1]} 18. O-O {[%clk 0:01:33.3]}
18... Qc7 {[%clk 0:02:26.4]} 19. Qd3 {[%clk 0:01:12.1]} 19... Qc6 {[%clk
0:02:18.2]} 20. Qc4 {[%clk 0:01:08.4]} 20... Rc8 {[%clk 0:02:15.1]} 21. a5
{[%clk 0:01:07.5]} 21... Qb5 {[%clk 0:01:57.7]} 22. Qxb5 {[%clk 0:01:02.3]}
22... Rxb5 {[%clk 0:01:59.6]} 23. Rfd1 {[%clk 0:00:53.8]} 23... Nf8 {[%clk
0:02:00.2]} 24. Ng3 {[%clk 0:00:48.5]} 24... Rb3 {[%clk 0:01:53.5]} 25. Rdc1
{[%clk 0:00:24.5]} 25... Nd7 {[%clk 0:01:41.3]} 26. Nd2 {[%clk 0:00:25.3]} 26...
Rb7 {[%clk 0:01:36.3]} 27. Nc4 {[%clk 0:00:25.9]} 27... Kf8 {[%clk 0:01:36.4]}
28. Rab1 {[%clk 0:00:25.6]} 28... Rcb8 {[%clk 0:01:36.7]} 29. Rxb7 {[%clk
0:00:25.7]} 29... Rxb7 {[%clk 0:01:38.6]} 30. Ne4 {[%clk 0:00:27.1]} 30... Rb5
{[%clk 0:01:34.2]} 31. Rd1 {[%clk 0:00:24.7]} 31... Ke8 {[%clk 0:01:35]} 32. e6
{[%clk 0:00:16.2]} 32... fxe6 {[%clk 0:01:34.6]} 33. Ng5 {[%clk 0:00:17.2]}
33... Nf8 {[%clk 0:01:34.4]} 34. Ne4 {[%clk 0:00:17.6]} 34... Nd7 {[%clk
0:01:32.3]} 35. Ng5 {[%clk 0:00:18.7]} 35... Bxc3 {[%clk 0:01:30.6]} 36. Nxe6
{[%clk 0:00:19.6]} 36... Rb4 {[%clk 0:01:24.9]} 37. Nb6 {[%clk 0:00:08.3]} 37...
Nxb6 {[%clk 0:01:21.4]} 38. Rd8+ {[%clk 0:00:04.9]} 38... Kf7 {[%clk 0:01:22.1]}
39. Ng5+ {[%clk 0:00:05.3]} 39... Kg7 {[%clk 0:01:21.5]} 40. axb6 {[%clk
0:00:03.7]} 40... Rxb6 {[%clk 0:01:21.2]} 41. Bxc5 {[%clk 0:00:04.8]} 41... Rb7
{[%clk 0:01:07]} 42. Ra8 {[%clk 0:00:04.7]} 42... a5 {[%clk 0:01:07.2]} 43. Re8
{[%clk 0:00:05.4]} 43... Nf7 {[%clk 0:01:05]} 44. Ne6+ {[%clk 0:00:02.6]} 44...
Kf6 {[%clk 0:01:06.3]} 45. Nd8 {[%clk 0:00:03.6]} 45... Nxd8 {[%clk 0:01:06.9]}
46. Rxd8 {[%clk 0:00:04.2]} 46... Ke6 {[%clk 0:01:01.4]} 47. Ra8 {[%clk
0:00:04.2]} 47... Kd5 {[%clk 0:00:59.1]} 48. Be3 {[%clk 0:00:05.2]} 48... Ke4
{[%clk 0:01:00.2]} 49. Kf2 {[%clk 0:00:06.3]} 49... Rb2+ {[%clk 0:01:00.3]} 0-1

[Event "*** MasterClass Titled Tuesday Blitz"]
[Site "Chess.com"]
[Date "2017.10.03"]
[Round "3"]
[White "ruvat"]
[Black "Ar4uha"]
[Result "1-0"]
[WhiteElo "2308"]
[BlackElo "2437"]
[TimeControl "180+2"]
[EndTime "13:37:21 PDT"]
[Termination "ruvat won by resignation"]

1. d4 {[%clk 0:02:58.4]} 1... Nf6 {[%clk 0:03:00.9]} 2. c4 {[%clk 0:02:56.1]}
2... e6 {[%clk 0:03:02]} 3. g3 {[%clk 0:02:56.3]} 3... d5 {[%clk 0:03:01]} 4.
Nf3 {[%clk 0:02:56.8]} 4... dxc4 {[%clk 0:03:02.8]} 5. Bg2 {[%clk 0:02:57.2]}
5... Nbd7 {[%clk 0:03:04]} 6. O-O {[%clk 0:02:57.9]} 6... Rb8 {[%clk 0:03:02]}
7. a4 {[%clk 0:02:57.7]} 7... b6 {[%clk 0:03:01]} 8. Nfd2 {[%clk 0:02:50.9]}
8... Bb7 {[%clk 0:02:58]} 9. Bxb7 {[%clk 0:02:48.2]} 9... Rxb7 {[%clk
0:02:59.8]} 10. Nxc4 {[%clk 0:02:49.2]} 10... c5 {[%clk 0:03:01.3]} 11. dxc5
{[%clk 0:02:33]} 11... Bxc5 {[%clk 0:03:01.8]} 12. Nd6+ {[%clk 0:02:30.9]} 12...
Bxd6 {[%clk 0:03:02.8]} 13. Qxd6 {[%clk 0:02:31.9]} 13... Nc5 {[%clk 0:03:02.5]}
14. Qxd8+ {[%clk 0:02:21.9]} 14... Kxd8 {[%clk 0:03:04.3]} 15. Nc3 {[%clk
0:02:14.7]} 15... Ke7 {[%clk 0:03:05.2]} 16. Bf4 {[%clk 0:02:10.5]} 16... Rd8
{[%clk 0:03:03]} 17. Rfd1 {[%clk 0:02:06.4]} 17... Rbd7 {[%clk 0:03:03.7]} 18.
Rxd7+ {[%clk 0:01:53.7]} 18... Rxd7 {[%clk 0:03:05.5]} 19. a5 {[%clk 0:01:52.5]}
19... Nb3 {[%clk 0:03:03.4]} 20. Ra4 {[%clk 0:01:42.1]} 20... Nxa5 {[%clk
0:03:03.9]} 21. b4 {[%clk 0:01:37]} 21... Nb3 {[%clk 0:03:04.6]} 22. Nb5 {[%clk
0:01:30.1]} 22... a5 {[%clk 0:02:57.9]} 23. bxa5 {[%clk 0:01:22.7]} 23... Nxa5
{[%clk 0:02:58.4]} 24. f3 {[%clk 0:01:07.8]} 24... Nd5 {[%clk 0:02:58.2]} 25.
Be5 {[%clk 0:01:02]} 25... f6 {[%clk 0:02:58.8]} 26. Bd4 {[%clk 0:01:02]} 26...
Nc6 {[%clk 0:02:58.9]} 27. Bb2 {[%clk 0:00:56]} 27... Kf7 {[%clk 0:02:55.7]} 28.
Kf2 {[%clk 0:00:47.8]} 28... Ndb4 {[%clk 0:02:54]} 29. Ba3 {[%clk 0:00:42.1]}
29... Nc2 {[%clk 0:02:48.5]} 30. Bd6 {[%clk 0:00:29.3]} 30... e5 {[%clk
0:02:45]} 31. e3 {[%clk 0:00:29.6]} 31... Na5 {[%clk 0:02:33.9]} 32. Ke2 {[%clk
0:00:23.6]} 32... Nb3 {[%clk 0:02:23.5]} 33. Rc4 {[%clk 0:00:19.7]} 33... Nca1
{[%clk 0:02:14.6]} 34. Ra4 {[%clk 0:00:14]} 34... Ke6 {[%clk 0:02:13.4]} 35. Bb4
{[%clk 0:00:11.5]} 35... Nc2 {[%clk 0:02:14.9]} 36. Bc3 {[%clk 0:00:09.9]} 36...
Nc1+ {[%clk 0:02:06.6]} 37. Kf2 {[%clk 0:00:09]} 37... Nd3+ {[%clk 0:02:08]} 38.
Ke2 {[%clk 0:00:09.1]} 38... Nc1+ {[%clk 0:02:08.9]} 39. Kf2 {[%clk 0:00:09.8]}
39... g5 {[%clk 0:01:53]} 40. h3 {[%clk 0:00:09.7]} 40... h5 {[%clk 0:01:53.4]}
41. h4 {[%clk 0:00:10.4]} 41... gxh4 {[%clk 0:01:53.9]} 42. Rxh4 {[%clk
0:00:10.8]} 42... Nd3+ {[%clk 0:01:44.9]} 43. Ke2 {[%clk 0:00:10.8]} 43... Nc1+
{[%clk 0:01:46.4]} 44. Kf2 {[%clk 0:00:11.2]} 44... Na2 {[%clk 0:01:48.3]} 45.
Rxh5 {[%clk 0:00:06.4]} 45... Nxc3 {[%clk 0:01:48.6]} 46. Nxc3 {[%clk
0:00:08.1]} 46... Rd2+ {[%clk 0:01:50.3]} 47. Kg1 {[%clk 0:00:07.4]} 47... Nxe3
{[%clk 0:01:51.8]} 48. Ne4 {[%clk 0:00:07.6]} 48... Rd1+ {[%clk 0:01:51.3]} 49.
Kf2 {[%clk 0:00:07.7]} 49... Nd5 {[%clk 0:01:53.2]} 50. Ke2 {[%clk 0:00:07.5]}
50... Ra1 {[%clk 0:01:51.8]} 51. Rh6 {[%clk 0:00:08.5]} 51... b5 {[%clk
0:01:49.4]} 52. Kd3 {[%clk 0:00:09.2]} 52... b4 {[%clk 0:01:50.2]} 53. Kc4
{[%clk 0:00:09.6]} 53... Rc1+ {[%clk 0:01:51]} 54. Kb3 {[%clk 0:00:09.4]} 54...
Rb1+ {[%clk 0:01:52.5]} 55. Kc2 {[%clk 0:00:10]} 55... Rf1 {[%clk 0:01:52.7]}
56. Kb2 {[%clk 0:00:08.4]} 56... Rxf3 {[%clk 0:01:53.4]} 57. Ng5+ {[%clk
0:00:09]} 57... Kf5 {[%clk 0:01:53.1]} 58. Nxf3 {[%clk 0:00:10.9]} 58... e4
{[%clk 0:01:54.8]} 59. Ne1 {[%clk 0:00:11.1]} 59... e3 {[%clk 0:01:55.7]} 60.
Rh2 {[%clk 0:00:10]} 60... Ke4 {[%clk 0:01:56.7]} 61. Kc2 {[%clk 0:00:09.9]}
61... Nc3 {[%clk 0:01:56.4]} 62. Rh4+ {[%clk 0:00:10.3]} 62... Ke5 {[%clk
0:01:57.6]} 63. Kb3 {[%clk 0:00:11.4]} 63... Ne4 {[%clk 0:01:56.7]} 64. Nd3+
{[%clk 0:00:10.7]} 64... Kf5 {[%clk 0:01:54.1]} 65. Rf4+ {[%clk 0:00:08.7]}
65... Kg5 {[%clk 0:01:55.8]} 66. Rxe4 {[%clk 0:00:09.3]} 66... f5 {[%clk
0:01:55.7]} 67. Rxe3 {[%clk 0:00:09.9]} 67... Kg4 {[%clk 0:01:57.6]} 68. Ne5+
{[%clk 0:00:09.8]} 1-0

[Event "*** MasterClass Titled Tuesday Blitz"]
[Site "Chess.com"]
[Date "2017.10.03"]
[Round "3"]
[White "Indianlad"]
[Black "guilhermedeola"]
[Result "1-0"]
[WhiteElo "2603"]
[BlackElo "1941"]
[TimeControl "180+2"]
[EndTime "13:37:26 PDT"]
[Termination "Indianlad won by resignation"]

1. e4 {[%clk 0:03:01.9]} 1... c5 {[%clk 0:03:00.5]} 2. Nf3 {[%clk 0:03:03.1]}
2... e6 {[%clk 0:03:01]} 3. Nc3 {[%clk 0:03:05]} 3... a6 {[%clk 0:03:01]} 4. d4
{[%clk 0:03:06.4]} 4... cxd4 {[%clk 0:03:01.8]} 5. Nxd4 {[%clk 0:03:08.3]} 5...
Nc6 {[%clk 0:03:02.4]} 6. g3 {[%clk 0:03:09.1]} 6... Qc7 {[%clk 0:02:59.8]} 7.
Bg2 {[%clk 0:03:10.1]} 7... d6 {[%clk 0:03:01.1]} 8. O-O {[%clk 0:03:11.5]} 8...
Bd7 {[%clk 0:03:01]} 9. Re1 {[%clk 0:03:12.6]} 9... Be7 {[%clk 0:03:00.8]} 10.
Nxc6 {[%clk 0:03:13.3]} 10... Bxc6 {[%clk 0:02:59.4]} 11. a4 {[%clk 0:03:12.3]}
11... Nf6 {[%clk 0:02:58.9]} 12. Be3 {[%clk 0:03:13]} 12... O-O {[%clk
0:02:50.9]} 13. a5 {[%clk 0:03:14.1]} 13... Nd7 {[%clk 0:02:51.6]} 14. Bd4
{[%clk 0:03:13.9]} 14... Nc5 {[%clk 0:02:45.7]} 15. Qd2 {[%clk 0:03:07.1]} 15...
Rfd8 {[%clk 0:02:35.8]} 16. b4 {[%clk 0:03:07.1]} 16... Nd7 {[%clk 0:02:35.1]}
17. Nd5 {[%clk 0:03:07.9]} 17... Bxd5 {[%clk 0:02:26.3]} 18. exd5 {[%clk
0:03:08.6]} 18... e5 {[%clk 0:02:27.6]} 19. Bf1 {[%clk 0:03:07.5]} 19... Bf6
{[%clk 0:02:09.4]} 20. Bb2 {[%clk 0:03:07.7]} 20... Rac8 {[%clk 0:02:07.8]} 21.
c4 {[%clk 0:03:07.2]} 21... g6 {[%clk 0:02:03.5]} 22. Rec1 {[%clk 0:03:04.7]}
22... Re8 {[%clk 0:02:02.4]} 23. Bh3 {[%clk 0:03:04.8]} 23... Rcd8 {[%clk
0:01:48.2]} 24. Rc2 {[%clk 0:03:04.5]} 24... Bg7 {[%clk 0:01:45]} 25. c5 {[%clk
0:03:03.1]} 25... f5 {[%clk 0:01:19.4]} 26. c6 {[%clk 0:02:59.9]} 26... Nf6
{[%clk 0:01:11.6]} 27. Rac1 {[%clk 0:03:01.4]} 27... Qf7 {[%clk 0:00:53.3]} 28.
cxb7 {[%clk 0:02:56.7]} 28... Qxb7 {[%clk 0:00:53.6]} 29. Rc6 {[%clk 0:02:51.5]}
29... Ne4 {[%clk 0:00:47.4]} 30. Qe1 {[%clk 0:02:50.9]} 30... Bh6 {[%clk
0:00:29.3]} 31. R1c2 {[%clk 0:02:45.3]} 31... Qa7 {[%clk 0:00:16.4]} 32. Bg2
{[%clk 0:02:33.8]} 32... Nxf2 {[%clk 0:00:14.8]} 33. Rxf2 {[%clk 0:02:29.2]}
33... Be3 {[%clk 0:00:16]} 34. Kf1 {[%clk 0:02:30.2]} 34... Bxf2 {[%clk
0:00:15]} 35. Qxf2 {[%clk 0:02:32]} 35... Qb7 {[%clk 0:00:14.6]} 36. Qb6 {[%clk
0:02:32.7]} 36... Qg7 {[%clk 0:00:12.4]} 37. Qxa6 {[%clk 0:02:11.1]} 37... Qh6
{[%clk 0:00:12.4]} 38. Qe2 {[%clk 0:02:10.6]} 38... Qxh2 {[%clk 0:00:10.1]} 39.
a6 {[%clk 0:02:08]} 39... Qxg3 {[%clk 0:00:10.6]} 40. b5 {[%clk 0:02:09.4]}
40... Qf4+ {[%clk 0:00:08.6]} 41. Kg1 {[%clk 0:02:09.5]} 41... Qb4 {[%clk
0:00:04.6]} 42. b6 {[%clk 0:02:10.4]} 42... f4 {[%clk 0:00:04.6]} 43. b7 {[%clk
0:02:01.8]} 43... f3 {[%clk 0:00:05.4]} 44. Bxf3 {[%clk 0:02:02.4]} 44... Rf8
{[%clk 0:00:06.9]} 45. Bg4 {[%clk 0:01:53.8]} 45... Rf4 {[%clk 0:00:07.4]} 46.
Be6+ {[%clk 0:01:54.8]} 46... Kg7 {[%clk 0:00:08.2]} 47. Rc8 {[%clk 0:01:54.8]}
47... Qb6+ {[%clk 0:00:08.8]} 48. Kg2 {[%clk 0:01:55]} 48... Rb4 {[%clk
0:00:08.1]} 49. b8=Q {[%clk 0:01:43.8]} 49... Qxb8 {[%clk 0:00:08.1]} 50. Rxb8
{[%clk 0:01:44.8]} 50... Rdxb8 {[%clk 0:00:08.9]} 51. Bc3 {[%clk 0:01:36.9]} 1-0

[Event "*** MasterClass Titled Tuesday Blitz"]
[Site "Chess.com"]
[Date "2017.10.03"]
[Round "3"]
[White "evgenysharapov"]
[Black "motivated_bishop"]
[Result "1-0"]
[WhiteElo "2257"]
[BlackElo "2135"]
[TimeControl "180+2"]
[EndTime "13:37:29 PDT"]
[Termination "evgenysharapov won by resignation"]

1. e4 {[%clk 0:02:45.6]} 1... e5 {[%clk 0:03:00.5]} 2. Nf3 {[%clk 0:02:45.7]}
2... Nc6 {[%clk 0:03:01.7]} 3. Bb5 {[%clk 0:02:45.8]} 3... a6 {[%clk 0:03:02.9]}
4. Ba4 {[%clk 0:02:46.2]} 4... Nf6 {[%clk 0:03:04]} 5. O-O {[%clk 0:02:45.7]}
5... Be7 {[%clk 0:03:05]} 6. Re1 {[%clk 0:02:46]} 6... b5 {[%clk 0:03:05.7]} 7.
Bb3 {[%clk 0:02:46.3]} 7... d6 {[%clk 0:03:07]} 8. c3 {[%clk 0:02:46.9]} 8...
O-O {[%clk 0:03:08.1]} 9. h3 {[%clk 0:02:47.3]} 9... Nb8 {[%clk 0:03:05.3]} 10.
d4 {[%clk 0:02:47.3]} 10... Nbd7 {[%clk 0:03:06.4]} 11. Nbd2 {[%clk 0:02:47.4]}
11... Bb7 {[%clk 0:03:07.4]} 12. Bc2 {[%clk 0:02:43.5]} 12... Re8 {[%clk
0:03:08.5]} 13. Nf1 {[%clk 0:02:44.1]} 13... Bf8 {[%clk 0:03:09.5]} 14. Ng3
{[%clk 0:02:44.1]} 14... g6 {[%clk 0:03:10.8]} 15. Bg5 {[%clk 0:02:43.1]} 15...
h6 {[%clk 0:03:11]} 16. Bd2 {[%clk 0:02:43.6]} 16... c5 {[%clk 0:03:12.2]} 17.
a4 {[%clk 0:02:37.4]} 17... b4 {[%clk 0:02:31.1]} 18. d5 {[%clk 0:02:33.1]}
18... a5 {[%clk 0:02:24.4]} 19. c4 {[%clk 0:02:33.2]} 19... Bg7 {[%clk
0:02:13.3]} 20. b3 {[%clk 0:02:33.4]} 20... Kf8 {[%clk 0:01:36.3]} 21. h4 {[%clk
0:02:33.5]} 21... Ke7 {[%clk 0:01:36.8]} 22. h5 {[%clk 0:02:31.9]} 22... Rh8
{[%clk 0:01:28.5]} 23. Nh4 {[%clk 0:02:24.2]} 23... Nf8 {[%clk 0:01:26.9]} 24.
hxg6 {[%clk 0:02:20.4]} 24... fxg6 {[%clk 0:01:27.5]} 25. f4 {[%clk 0:02:12.1]}
25... exf4 {[%clk 0:01:21.6]} 26. Bxf4 {[%clk 0:02:11.1]} 26... N6d7 {[%clk
0:01:19.6]} 27. Nxg6+ {[%clk 0:02:00.2]} 27... Nxg6 {[%clk 0:01:20.1]} 28. Nf5+
{[%clk 0:02:00.9]} 28... Kf8 {[%clk 0:01:20.2]} 29. Bxd6+ {[%clk 0:01:57.9]}
29... Kg8 {[%clk 0:01:21.1]} 30. Nxg7 {[%clk 0:01:55.5]} 30... Kxg7 {[%clk
0:01:17.5]} 31. e5 {[%clk 0:01:56.5]} 31... Qg5 {[%clk 0:01:16.3]} 32. Qf3
{[%clk 0:01:41.2]} 32... Raf8 {[%clk 0:01:15.7]} 33. Bxf8+ {[%clk 0:01:41.1]}
33... Rxf8 {[%clk 0:01:16.4]} 34. Qe4 {[%clk 0:01:40.1]} 34... Ndxe5 {[%clk
0:01:10]} 35. Rf1 {[%clk 0:01:36.8]} 35... Nf4 {[%clk 0:00:43.9]} 36. Rae1
{[%clk 0:01:31.7]} 36... Rf5 {[%clk 0:00:16.3]} 37. Rxf4 {[%clk 0:01:27.6]}
37... Rxf4 {[%clk 0:00:08.1]} 38. Qxe5+ {[%clk 0:01:23.2]} 38... Qxe5 {[%clk
0:00:08.7]} 39. Rxe5 {[%clk 0:01:24]} 39... Bc8 {[%clk 0:00:07.3]} 40. d6 {[%clk
0:01:18.6]} 40... Rd4 {[%clk 0:00:07.7]} 41. Rxc5 {[%clk 0:01:18.9]} 41... Be6
{[%clk 0:00:06.1]} 42. Rc7+ {[%clk 0:01:17.9]} 42... Kf6 {[%clk 0:00:06.9]} 43.
c5 {[%clk 0:01:17.9]} 43... Rd2 {[%clk 0:00:08]} 44. Be4 {[%clk 0:01:02.7]}
44... Bxb3 {[%clk 0:00:08.8]} 45. d7 {[%clk 0:01:00]} 45... Bxa4 {[%clk
0:00:09.9]} 46. c6 {[%clk 0:00:59.2]} 46... b3 {[%clk 0:00:11.2]} 47. Rc8 {[%clk
0:00:57.1]} 47... Ke7 {[%clk 0:00:04.1]} 48. Re8+ {[%clk 0:00:56.9]} 48... Kf7
{[%clk 0:00:04.8]} 49. d8=Q {[%clk 0:00:57.6]} 49... Rxd8 {[%clk 0:00:05.3]} 50.
Rxd8 {[%clk 0:00:58.7]} 50... b2 {[%clk 0:00:07.2]} 51. Rb8 {[%clk 0:00:58.6]}
1-0